fUSD/lending_fUSD_20250524
["ID","MTS","AMOUNT","RATE_DAILY","PERIOD"]
[362194716,1748083835819,-151.33064016,0.00019973,2]
[362194717,1748083835830,-150.0,0.00019973,2]
[362194718,1748083835839,-150.0,0.00019974,2]
[362194719,1748083835848,-150.0,0.00019976,2]
[362194720,1748083835858,-150.0,0.0001998,2]
[362194721,1748083835868,-1000.0,0.00019983,2]
[362194722,1748083835878,-150.0,0.00019984,2]
[362194724,1748083835887,-992.34759515,0.00019984,2]
[362194725,1748083835904,-7.65240485,0.00019984,2]
[362194726,1748083835914,-150.0,0.00019985,2]
[362194727,1748083835924,-506.21754012,0.0001999,2]
[362194728,1748083835965,-712.80182721,0.0001999,2]
[362194729,1748083835990,-1215.02280389,0.0001999,2]
[362194738,1748083838264,-300.0,0.00017498,2]
[362194739,1748083838277,-400.0,0.00019102,2]
[362194740,1748083838287,-2063.0380292,0.0001999,2]
[362194741,1748083838296,-155.54,0.0001999,2]
[362194742,1748083838307,-155.54,0.0001999,2]
[362194743,1748083838318,-155.54,0.0001999,2]
[362194744,1748083838327,-155.54,0.0001999,2]
[362194745,1748083838337,-155.54,0.0001999,2]
[362194746,1748083838347,-155.54,0.0001999,2]
[362194747,1748083838356,-155.54,0.0001999,2]
[362194748,1748083838366,-155.54,0.0001999,2]
[362194749,1748083838376,-155.54,0.0001999,2]
[362194750,1748083838386,-155.54,0.0001999,2]
[362194751,1748083838396,-64.87052977,0.0001999,2]
[362194752,1748083838408,-90.66947023,0.0001999,2]
[362194753,1748083838417,-155.54,0.0001999,2]
[362194754,1748083838426,-155.54,0.0001999,2]
[362194755,1748083838436,-155.54,0.0001999,2]
[362194756,1748083838445,-155.54,0.0001999,2]
[362194757,1748083838455,-199.92588181,0.0001999,2]
[362194758,1748083838465,-0.00412591,0.0001999,2]
[362194759,1748083838519,-199.9217559,0.0001999,2]
[362194760,1748083838528,-199.92588181,0.0001999,2]
[362194761,1748083838538,-1556.15235939,0.00019991,2]
[362194762,1748083838549,-914.93696471,0.00019991,2]
[362194763,1748083838560,-1813.40527836,0.00019997,2]
[362194764,1748083838572,-8625.13881411,0.00019997,2]
[362194765,1748083838584,-9384.26657864,0.00019997,2]
[362194766,1748083838593,-150.0,0.00019999,2]
[362194767,1748083838603,-3560.73342136,0.0002,4]
[362194773,1748083838855,-439.26657864,0.0002,4]
[362194774,1748083838868,-203.51392123,0.0002,2]
[362194776,1748083838878,-692.76950013,0.0002,2]
[362194778,1748083838890,-294.1408627,0.0002,2]
[362194783,1748083838919,-82433.72133684,0.0002,2]
[362194785,1748083838930,-599.73664137,0.0002,2]
[362194787,1748083838942,-351.58164854,0.0002,2]
[362194792,1748083838998,-516.41352669,0.0002,2]
[362194793,1748083839009,-21769.99999999,0.0002,2]
[362194794,1748083839024,-1720.32690124,0.0002,2]
[362194795,1748083839065,-1470.24661377,0.0002,2]
[362194796,1748083839076,-4104.72063404,0.0002,2]
[362194797,1748083839086,-451.15504761,0.0002,2]
[362194852,1748083840614,-500.0,0.00017499,2]
[362194853,1748083840624,-645.0,0.00017499,2]
[362194854,1748083840634,-500.0,0.00017499,2]
[362194855,1748083840643,-500.0,0.00017499,2]
[362194856,1748083840653,-500.0,0.00017499,2]
[362194857,1748083840662,-500.0,0.00017499,2]
[362194858,1748083840672,-500.0,0.00017499,2]
[362194859,1748083840682,-206.25407633,0.00019499,2]
[362194860,1748083840691,-201.54124736,0.00019499,2]
[362194861,1748083840701,-134955.44543302,0.0002,2]
[362194871,1748083840901,-1084.92428053,0.0002,2]
[362194873,1748083840913,-954.5072282,0.0002,2]
[362194876,1748083840924,-3877.53033603,0.0002,2]
[362194878,1748083840935,-2089.4,0.0002,2]
[362194889,1748083843639,-1012.97035628,0.0002,2]
[362194890,1748083843650,-396.359999,0.0002,2]
[362194894,1748083843850,-273.71051353,0.0002,2]
[362195190,1748083846735,-494.40277717,0.00017499,2]
[362195192,1748083846744,-2947.26319223,0.0002,2]
[362195196,1748083846770,-420.0,0.0002,2]
[362196761,1748083870931,1378.19821278,0.00027397,120]
[362196762,1748083978988,-250.0,0.00018549,2]
[362196763,1748083979017,-200.0,0.00018549,2]
[362196764,1748083979045,-250.0,0.00019249,2]
[362196765,1748083979072,-200.0,0.00019249,2]
[362196766,1748083979099,-250.0,0.00019356,2]
[362196767,1748083979125,-200.0,0.00019356,2]
[362196768,1748083979157,-199.24279474,0.00019499,2]
[362196769,1748083979183,-827.520491,0.00019599,2]
[362196770,1748083979208,-199.24279474,0.000197,2]
[362196771,1748083979234,-14549.03319953,0.0001981,2]
[362196772,1748083979262,-634.25303979,0.000199,2]
[362196773,1748083979290,-213.1231751,0.000199,2]
[362196774,1748083979325,-221.60397265,0.000199,2]
[362196775,1748083979353,-482.92669522,0.000199,2]
[362196776,1748083979386,-5667.16493728,0.000199,2]
[362196777,1748083979415,-271.30775124,0.000199,2]
[362196778,1748083979440,-2662.18777484,0.000199,2]
[362196779,1748083979469,-2616.29203499,0.000199,2]
[362196780,1748083979498,-199.24279474,0.000199,2]
[362196781,1748083979524,-500.0,0.00019973,2]
[362196782,1748083979551,-501.24404194,0.00019973,2]
[362196783,1748083979579,-500.0,0.00019973,2]
[362196784,1748083979608,-208.42445273,0.00019973,2]
[362196785,1748083979635,-504.85155625,0.00019973,2]
[362196786,1748083979661,-500.0,0.00019973,2]
[362196787,1748083979687,-500.0,0.00019973,2]
[362196788,1748083979714,-505.00798943,0.00019973,2]
[362196789,1748083979740,-500.0,0.00019973,2]
[362196790,1748083979767,-500.0,0.00019973,2]
[362196791,1748083979794,-293.17009468,0.00019991,2]
[362196792,1748083979820,-74.51031822,0.00019999,2]
[362196793,1748083981081,-925.48968178,0.00019999,2]
[362196794,1748083981107,-150.0,0.00019999,2]
[362196795,1748083981133,-300.0,0.00019999,2]
[362196796,1748083981159,-589.9427649,0.00019999,2]
[362196797,1748083981185,-500.0,0.00019999,2]
[362196798,1748083981211,-424.50575854,0.00019999,2]
[362196799,1748083981238,-500.0,0.00019999,2]
[362196800,1748083981265,-375.0698985,0.00019999,2]
[362196801,1748083981448,-496.5,0.00019502,2]
[362196802,1748083982141,-12382.09681157,0.0002,2]
[362196803,1748083982213,-496.5,0.0001981,2]
[362196804,1748083982228,-9621.62825319,0.0001981,2]
[362196805,1748083982238,-60671.56124681,0.0002,2]
[362196806,1748083982667,-71286.1895,0.0002,2]
[362196807,1748083982737,-71286.1895,0.0002,2]
[362196808,1748083983478,-71286.1895,0.0002,2]
[362196809,1748083984360,-71286.1895,0.0002,2]
[362196810,1748083985447,-71286.1895,0.0002,2]
[362196811,1748083985514,-193.29,0.00021945,30]
[362196812,1748083986099,-1253.794623,0.00019401,2]
[362196813,1748083986164,-68778.600254,0.0002,2]
[362196814,1748083986963,-71286.1895,0.0002,2]
[362196815,1748083990705,-1003.51598088,0.00019999,2]
[362196816,1748083990739,-69279.15753824,0.0002,2]
[362196817,1748083991616,-71286.1895,0.0002,2]
[362196818,1748083992519,-71286.1895,0.0002,2]
[362196819,1748083993487,-71286.1895,0.0002,2]
[362196820,1748083994365,-71286.1895,0.0002,2]
[362196821,1748083995254,-71286.1895,0.0002,2]
[362196822,1748083996440,-71286.1895,0.0002,2]
[362196823,1748083997257,-71286.1895,0.0002,2]
[362196824,1748083998095,-71286.1895,0.0002,2]
[362196825,1748083998888,-71286.1895,0.0002,2]
[362196826,1748084032328,-744.768442,0.00019599,2]
[362196827,1748084032362,-200.0,0.0001984,2]
[362196828,1748084032389,-321.95113014,0.000199,2]
[362196829,1748084032463,-68752.75035572,0.0002,2]
[362196830,1748084087892,445.58,0.0002575,120]
[362196831,1748084113160,250.0,0.00015,2]
[362196832,1748084114211,300.0,0.00017,2]
[362196833,1748084120864,172.03,0.00016403,2]
[362196834,1748084197806,199.56757752,0.00013699,2]
[362196835,1748084335936,-254.52399917,0.00017208,2]
[362196836,1748084338144,-193.94628766,0.00017208,2]
[362196837,1748084340927,-266.30283643,0.00017208,2]
[362196838,1748084343143,-201.0,0.00017208,2]
[362196839,1748084344906,-175.85434482,0.00017208,2]
[362196840,1748084349245,-180.57573884,0.00017208,2]
[362196841,1748084350677,-113.95679308,0.00017208,2]
[362196842,1748084367262,193.29,0.00021945,30]
[362196843,1748084367423,200.9771585,0.00017191,2]
[362196846,1748084493274,317.23,0.00013699,2]
[362196848,1748084501930,-2751.0,0.00018506,2]
[362196849,1748084501959,-200.0,0.00018523,2]
[362196850,1748084501986,-250.0,0.00018578,2]
[362196851,1748084502014,-350.0,0.00019,2]
[362196852,1748084502042,-200.0,0.00019041,2]
[362196853,1748084502072,-200.0,0.00019074,2]
[362196854,1748084502099,-155.25,0.00019081,2]
[362196855,1748084502129,-155.25,0.00019089,2]
[362196856,1748084502156,-155.25,0.00019096,2]
[362196857,1748084502186,-155.25,0.00019103,2]
[362196858,1748084502216,-155.25,0.00019111,2]
[362196859,1748084502245,-155.25,0.00019118,2]
[362196860,1748084502274,-155.25,0.00019125,2]
[362196861,1748084502302,-155.25,0.00019133,2]
[362196862,1748084502328,-155.25,0.0001914,2]
[362196863,1748084502357,-155.25,0.00019147,2]
[362196864,1748084502384,-155.25,0.00019155,2]
[362196865,1748084502413,-155.25,0.00019162,2]
[362196866,1748084502443,-155.25,0.00019169,2]
[362196867,1748084502472,-155.25,0.00019177,2]
[362196868,1748084502500,-159.69,0.00019178,2]
[362196869,1748084502534,-150.0,0.00019236,7]
[362196870,1748084502565,-200.0,0.000193,2]
[362196871,1748084502593,-1386.16,0.00019472,2]
[362196872,1748084502621,-670.291598,0.00019599,2]
[362196873,1748084502646,-172.56,0.00019705,2]
[362196874,1748084502676,-185.67025656,0.00019799,2]
[362196875,1748084502703,-300.0,0.00019799,2]
[362196876,1748084502731,-256.71,0.0001986,2]
[362196877,1748084502759,-500.0,0.00019863,2]
[362196878,1748084502788,-1200.0,0.00019898,2]
[362196879,1748084502815,-121.77629088,0.00019898,2]
[362196880,1748084504415,-178.22370912,0.00019898,2]
[362196881,1748084517281,-2628.405,0.00019899,2]
[362196882,1748084517308,-179.703,0.00019899,2]
[362196883,1748084517334,-300.0,0.00019899,2]
[362196884,1748084517361,-152.78554428,0.00019899,2]
[362196885,1748084517387,-1508.4218,0.000199,2]
[362196886,1748084517413,-618.39672324,0.000199,2]
[362196887,1748084517440,-219.30099873,0.000199,2]
[362196888,1748084517596,-213.3338675,0.000199,2]
[362196889,1748084527378,-151.0,0.00019178,2]
[362196890,1748084527405,-156.587,0.00019726,2]
[362196891,1748084527433,-300.0,0.00019899,2]
[362196892,1748084527461,-180.87183416,0.000199,2]
[362196893,1748084527489,-251.98237348,0.000199,2]
[362196894,1748084527661,-3526.12758472,0.000199,2]
[362196911,1748085031545,-200.0,0.00019126,2]
[362196912,1748085031555,-200.0,0.00019129,2]
[362196913,1748085031565,-290.22,0.00019132,2]
[362196914,1748085031574,-5561.0,0.000193,5]
[362196915,1748085031584,-200.0,0.00019458,2]
[362196916,1748085031594,-603.262438,0.00019599,2]
[362196917,1748085031606,-200.0,0.0001984,2]
[362196918,1748085031621,-300.0,0.00019898,2]
[362196919,1748085031631,-1200.0,0.00019898,2]
[362196920,1748085031640,-300.0,0.00019899,2]
[362196921,1748085031650,-2658.60655266,0.00019899,2]
[362196922,1748085031660,-2658.60655263,0.00019899,2]
[362196923,1748085031672,-2658.60655263,0.00019899,2]
[362196924,1748085031682,-2658.60655263,0.00019899,2]
[362196925,1748085031691,-2658.60655263,0.00019899,2]
[362196926,1748085031702,-2658.60655263,0.000199,2]
[362196927,1748085031711,-151.0,0.000199,2]
[362196928,1748085031721,-197.37089883,0.000199,2]
[362196929,1748085031731,-215.28419639,0.000199,2]
[362196930,1748085031740,-180.87183415,0.000199,2]
[362196931,1748085031751,-4838.37575407,0.000199,2]
[362196932,1748085031763,-161.62424593,0.000199,2]
[362196933,1748085031773,-169.52426775,0.000199,2]
[362196934,1748085031784,-1191.78900694,0.000199,2]
[362196935,1748085031830,-1157.42669743,0.000199,2]
[362196936,1748085031840,-301.01788847,0.000199,2]
[362196939,1748085031851,-1473.77396141,0.000199,2]
[362196940,1748085031861,-500.0,0.00019973,2]
[362196942,1748085031871,-520.8470931,0.00019973,2]
[362196944,1748085031881,-520.72472321,0.00019973,2]
[362196945,1748085031891,-160.92635994,0.00019973,2]
[362196946,1748085031900,-500.0,0.00019973,2]
[362196947,1748085031910,-500.0,0.00019973,2]
[362196948,1748085031920,-87.93066776,0.00019973,2]
[362196949,1748085031947,-227.21506976,0.00019973,2]
[362196950,1748085031960,-502.16828216,0.00019973,2]
[362196951,1748085031971,-500.0,0.00019973,2]
[362196952,1748085031980,-500.0,0.00019973,2]
[362196953,1748085031990,-500.0,0.00019973,2]
[362196954,1748085032000,-504.80097089,0.00019973,2]
[362196955,1748085032010,-503.64934028,0.00019973,2]
[362196956,1748085032019,-500.0,0.00019973,2]
[362196958,1748085032028,-13349.70199429,0.0001998,2]
[362196960,1748085032038,-151.0,0.00019988,2]
[362196962,1748085032047,-156.71174981,0.00019988,2]
[362196964,1748085032056,-151.0,0.00019988,2]
[362196966,1748085032065,-668.65185757,0.00019988,2]
[362196968,1748085032075,-668.65185757,0.00019988,2]
[362196970,1748085032085,-300.0,0.00019988,2]
[362196972,1748085032095,-300.0,0.00019988,2]
[362196974,1748085032104,-1438.09495884,0.00019988,2]
[362196976,1748085032113,-400.0,0.00019988,2]
[362196978,1748085032122,-207.4,0.00019988,2]
[362196980,1748085032132,-151.0,0.00019988,2]
[362196982,1748085032141,-19027.86563613,0.00019999,2]
[362196988,1748085032193,-16369.1129427,0.00019999,2]
[362197021,1748085037405,-435.10684468,0.000199,2]
[362197022,1748085037562,-2223.49970795,0.000199,2]
[362197023,1748085037572,-2658.60655263,0.000199,2]
[362197024,1748085037582,-300.0,0.00019998,2]
[362197025,1748085037591,-79024.78507965,0.00019999,2]
[362197026,1748085037601,-150.0,0.00019999,2]
[362197027,1748085037610,-1033625.51280233,0.0002,2]
[362197056,1748085037999,-918.57148,0.0002,2]
[362197058,1748085038012,-10234.8538891,0.0002,2]
[362197060,1748085038024,-2453.29972335,0.0002,2]
[362197063,1748085038037,-53629.61426636,0.0002,2]
[362197065,1748085038048,-1260.0,0.0002,2]
[362197193,1748085039557,-575.15786133,0.0002,2]
[362197194,1748085039569,-22362.0,0.0002,2]
[362197195,1748085039663,-1005.57863446,0.0002,2]
[362197196,1748085041712,-401.536,0.0002,2]
[362197217,1748085042765,-206.0,0.00018595,2]
[362197218,1748085042775,-2243.58029071,0.000199,2]
[362197350,1748085344241,-204.0,0.00018595,2]
[362197351,1748085344264,-5.53471042,0.00018945,2]
[362197352,1748085384172,1310.12,0.00016964,2]
[362197353,1748085415487,576.0,0.00025737,120]
[362197355,1748085590479,1000.0,0.00025,90]
[362197356,1748085612622,1042.31,0.00027397,120]
[362197357,1748085625979,-151.0,0.00018065,2]
[362197358,1748085626003,-14.5822956,0.0001807,2]
[362197359,1748085634589,309.29,0.00013699,2]
[362197360,1748085736535,-151.0,0.0001806,2]
[362197361,1748085736563,-14.5822956,0.00018062,2]
[362197362,1748085835940,-165.5822956,0.00018062,2]
[362197363,1748085924425,-19.8354088,0.00018062,2]
[362197364,1748085924449,-145.7468868,0.00018075,2]
[362197365,1748085930696,250.0,0.00015,2]
[362197366,1748085931777,300.0,0.00017,2]
[362197367,1748085937087,7830.59,9e-05,2]
[362197368,1748085937109,10000.0,9e-05,2]
[362197369,1748085937130,10000.0,9e-05,2]
[362197370,1748085937151,1406.60304267,9e-05,2]
[362197371,1748085955289,7365.38949711,6.94e-05,2]
[362197372,1748085962668,593.65384453,8e-05,2]
[362197373,1748085966761,634.35361569,8e-05,2]
[362197374,1748085966782,327.65317713,8e-05,2]
[362197375,1748085989440,1983.46411825,0.00015,2]
[362197376,1748085995323,-54.2531132,0.00018075,2]
[362197377,1748085995346,-111.3291824,0.00018087,2]
[362197378,1748085997240,3325.84,0.00027397,120]
[362197379,1748086040673,251.96971486,0.000101,2]
[362197380,1748086054213,-88.6708176,0.00018087,2]
[362197381,1748086054238,-76.911478,0.00018093,2]
[362197382,1748086075414,7436.91298976,0.0001,2]
[362197383,1748086075435,10000.0,0.0001,2]
[362197384,1748086075457,5421.95694132,0.0001,2]
[362197385,1748086077204,240.43645898,0.00015,2]
[362197386,1748086094148,-151.0,0.00018098,2]
[362197387,1748086094173,-14.5822956,0.00018258,2]
[362197388,1748086119030,-165.5822956,0.00018258,2]
[362197392,1748086215146,-19.8354088,0.00018258,2]
[362197393,1748086215170,-145.7468868,0.00018365,2]
[362197404,1748086232213,-54.2531132,0.00018365,2]
[362197405,1748086232223,-250.0,0.00018417,2]
[362197406,1748086232232,-1594.66,0.00018424,2]
[362197407,1748086232241,-437.15,0.00018443,2]
[362197408,1748086232251,-169.31,0.00018444,2]
[362197409,1748086232260,-484.8,0.00018464,2]
[362197410,1748086232270,-300.0,0.00018468,2]
[362197411,1748086232279,-390.95474688,0.00018468,2]
[362197412,1748086232332,-809.04525312,0.00018468,2]
[362197413,1748086232342,-276.91970068,0.00018468,2]
[362197414,1748086232354,-23.08029932,0.00018468,2]
[362197415,1748086232364,-4394.23643925,0.00018469,2]
[362197416,1748086232378,-806.98450508,0.00018469,2]
[362197417,1748086232428,-2396.58452713,0.00018469,2]
[362197422,1748086232463,-2616.96133254,0.00018469,2]
[362197424,1748086232475,-440.0,0.00018469,2]
[362197430,1748086232518,-1302.66754437,0.00018469,2]
[362197450,1748086237575,-300.0,0.00018468,2]
[362197451,1748086237592,-10731.55591389,0.00018469,2]
[362197452,1748086237838,-1211.00973774,0.00018469,2]
[362197453,1748086237848,-1000.0,0.0001849,2]
[362197454,1748086237860,-200.0,0.00018497,2]
[362197455,1748086237869,-1175.84934329,0.00018533,2]
[362197664,1748086240028,-1575.15065671,0.00018533,2]
[362197666,1748086240042,-576.0,0.00018717,2]
[362197668,1748086240051,-630.676485,0.0001875,2]
[362197670,1748086240061,-500.0,0.00018767,2]
[362197672,1748086240071,-328.44494631,0.00018767,2]
[362197674,1748086240083,-500.0,0.00018767,2]
[362197676,1748086240092,-500.0,0.00018779,2]
[362197678,1748086240102,-490.58379542,0.00018779,2]
[362197680,1748086240113,-500.0,0.00018779,2]
[362197682,1748086240123,-21682.75144069,0.0001878,2]
[362197684,1748086240132,-4055.80528958,0.00018945,2]
[362197686,1748086240142,-325.19181603,0.0001899,2]
[362197688,1748086240151,-24671.92838996,0.00018991,2]
[362197692,1748086240181,-1556.94716,0.00018991,2]
[362197696,1748086240212,-9600.0,0.00018991,2]
[362197698,1748086240223,-551.69445004,0.00018991,2]
[362197700,1748086240232,-200.0,0.00018991,2]
[362197702,1748086240241,-151.0,0.00018999,2]
[362197704,1748086240250,-151.0,0.00018999,2]
[362197706,1748086240260,-668.65185757,0.00018999,2]
[362197708,1748086240269,-668.65185757,0.00018999,2]
[362197710,1748086240279,-179.20183483,0.00018999,2]
[362197967,1748086242751,-1258.89312401,0.00018999,2]
[362197969,1748086242760,-151.0,0.00018999,2]
[362197971,1748086242770,-134.41675907,0.00018999,2]
[362197988,1748086242935,-72.98324093,0.00018999,2]
[362197991,1748086242945,-350.0,0.00019,2]
[362197993,1748086242955,-150.0,0.00019002,7]
[362197995,1748086242965,-238.0,0.00019041,2]
[362197996,1748086242974,-253.29,0.00019051,2]
[362197998,1748086242983,-151.0,0.00019178,2]
[362198001,1748086242992,-159.69,0.00019178,2]
[362198003,1748086243002,-266.67676426,0.00019228,2]
[362198005,1748086243015,-1043.44323574,0.00019228,2]
[362198007,1748086243025,-819.4158115,0.00019315,2]
[362198009,1748086243035,-206.0,0.00019359,2]
[362198011,1748086243047,-151.0,0.00019547,2]
[362198013,1748086243056,-655.84651234,0.00019547,2]
[362198017,1748086243088,-37.54546396,0.00019547,2]
[362198019,1748086243097,-164.62200347,0.00019547,2]
[362198021,1748086243107,-343.83253257,0.00019596,2]
[362198027,1748086243150,-203.10327695,0.00019596,2]
[362198029,1748086243159,-385.60833455,0.00019599,2]
[362198032,1748086243171,-166.85754145,0.00019599,2]
[362198034,1748086243180,-1000.0,0.000197,2]
[362198036,1748086243189,-270.9916,0.000197,2]
[362198038,1748086243199,-3559.5132,0.000197,2]
[362198040,1748086243208,-317.9436,0.000197,2]
[362198042,1748086243217,-156.587,0.00019726,2]
[362198044,1748086243227,-841.34620185,0.00019756,2]
[362198084,1748086243447,-546.93580952,0.00019781,2]
[362198087,1748086243466,-1000.0,0.000198,2]
[362198089,1748086243475,-862.5672,0.000198,2]
[362198091,1748086243485,-610.91441867,0.000198,2]
[362198093,1748086243494,-2500.0,0.000198,2]
[362198095,1748086243504,-610.91441862,0.00019811,2]
[362198097,1748086243513,-610.91441862,0.00019822,2]
[362198099,1748086243523,-610.91441862,0.00019833,2]
[362198101,1748086243532,-200.0,0.0001984,2]
[362198103,1748086243542,-610.91441862,0.00019844,2]
[362198105,1748086243551,-204.0,0.00019845,2]
[362198107,1748086243561,-610.91441862,0.00019856,2]
[362198109,1748086243571,-179.704,0.00019866,2]
[362198111,1748086243581,-610.91441862,0.00019867,2]
[362198113,1748086243591,-404.96545399,0.00019871,2]
[362198115,1748086243600,-2102.724,0.00019873,2]
[362198117,1748086243609,-610.91441862,0.00019878,2]
[362198119,1748086243619,-200.0,0.00019882,2]
[362198121,1748086243629,-404.96545399,0.00019886,2]
[362198123,1748086243638,-610.91441862,0.00019889,2]
[362198125,1748086243647,-3938.3603,0.00019899,2]
[362198127,1748086243657,-572.34916828,0.000199,2]
[362198129,1748086243667,-35963.1112,0.000199,2]
[362198131,1748086243677,-20044.37938101,0.000199,2]
[362198134,1748086243689,-9985.93978935,0.000199,2]
[362198136,1748086243700,-164560.24582558,0.000199,2]
[362199004,1748086278695,-165.5822956,0.00018767,2]
[362199005,1748086359471,-8.27451413,0.00018767,2]
[362199006,1748086359493,-157.30778147,0.00018767,2]
[362199007,1748086385624,-150.0,0.00018994,7]
[362199008,1748086385646,-15.5822956,0.000191,6]
[362199009,1748086640608,165.02713002,0.00016937,2]
[362199010,1748086640633,1014.07286998,0.00016937,2]
[362199011,1748086673033,302.0,0.00027,120]
[362199012,1748086704956,300.0,0.00027,120]
[362199013,1748086745393,212.05915832,0.00013699,2]
[362199014,1748086745416,92.34084168,0.00013699,2]
[362199015,1748086821605,356.46,0.00025662,120]
[362199025,1748087431845,-242.4,0.00018574,2]
[362199026,1748087431854,-1000.0,0.00018637,2]
[362199027,1748087431863,-356.46,0.00018663,2]
[362199028,1748087431873,-200.0,0.00018914,2]
[362199029,1748087431883,-300.0,0.00018918,2]
[362199030,1748087431894,-1200.0,0.00018918,2]
[362199031,1748087431905,-2411.1174238,0.00018919,2]
[362199032,1748087431919,-400.0,0.00018919,2]
[362199033,1748087431951,-2219.999976,0.00018919,2]
[362199034,1748087432006,-2315.3649273,0.00018919,2]
[362199037,1748087432075,-16553.5176729,0.00018919,2]
[362199039,1748087432084,-2751.0,0.00018948,2]
[362199041,1748087432093,-284.69131738,0.00018972,2]
[362199043,1748087432102,-207.4,0.00018999,2]
[362199045,1748087432112,-161.01558353,0.00019014,2]
[362199047,1748087432122,-500.0,0.000191,6]
[362199049,1748087432131,-161.01558353,0.00019151,2]
[362199050,1748087432140,-151.0,0.00019178,2]
[362199061,1748087432301,-159.69,0.00019178,2]
[362199065,1748087432376,-1000.0,0.000192,7]
[362199067,1748087432386,-1179.1,0.00019201,2]
[362199069,1748087432400,-164.52,0.00019221,2]
[362199071,1748087432409,-161.01558353,0.00019288,2]
[362199072,1748087432418,-1500.0,0.000193,7]
[362199074,1748087432428,-7573.1,0.00019339,2]
[362199076,1748087432438,-9999.99,0.00019339,2]
[362199078,1748087432447,-9983.07,0.00019339,2]
[362199079,1748087432456,-1085.84,0.00019339,2]
[362199081,1748087432465,-150.99,0.00019339,2]
[362199083,1748087432474,-999.99,0.00019339,2]
[362199085,1748087432484,-2000.0,0.000194,7]
[362199087,1748087432493,-161.01558353,0.00019425,2]
[362199088,1748087432502,-2500.0,0.000195,7]
[362199090,1748087432512,-161.01558353,0.00019562,2]
[362199092,1748087432521,-497.219289,0.00019599,2]
[362199094,1748087432531,-500.0,0.000196,7]
[362199096,1748087432540,-161.01558353,0.00019699,2]
[362199097,1748087432549,-1000.0,0.000197,2]
[362199099,1748087432560,-2500.0,0.000197,2]
[362199101,1748087432570,-500.0,0.000197,7]
[362199103,1748087432579,-303.72409052,0.000197,2]
[362199105,1748087432589,-299.93967783,0.00019726,2]
[362199107,1748087432598,-303.72409049,0.00019729,2]
[362199108,1748087432608,-303.72409049,0.00019757,2]
[362199110,1748087432617,-303.72409049,0.00019786,2]
[362199112,1748087432626,-151.0,0.00019788,2]
[362199114,1748087432635,-151.0,0.00019788,2]
[362199115,1748087432644,-668.65185757,0.00019788,2]
[362199117,1748087432655,-668.65185757,0.00019788,2]
[362199119,1748087432665,-1438.09495884,0.00019788,2]
[362199121,1748087432673,-35963.1112,0.000198,2]
[362199122,1748087432683,-88609.26390574,0.000198,2]
[362199124,1748087432694,-3761.95552463,0.000198,2]
[362199126,1748087432706,-4508.23,0.000198,2]
[362199152,1748087438007,-332.29493724,0.00018477,2]
[362199153,1748087438019,-332.84506276,0.00018477,2]
[362199154,1748087438029,-300.0,0.00018918,2]
[362199155,1748087438038,-360.89276077,0.000198,2]
[362199156,1748087438069,-20601.19310815,0.000198,2]
[362199157,1748087438080,-10778.1421959,0.000198,2]
[362199168,1748087439906,-152.72860467,0.000197,2]
[362199169,1748087439916,-461.97539533,0.000198,2]
[362199170,1748087439929,-11317.23397686,0.000198,2]
[362199171,1748087439940,-685.2889976,0.000198,2]
[362199172,1748087440062,-9429.67100035,0.000198,2]
[362199173,1748087440217,-947.72946,0.000198,2]
[362199174,1748087440229,-1007.5722947,0.000198,2]
[362199175,1748087440277,-999.62596846,0.000198,2]